[Event "Satka Autumn 2019"]
[Site "Satka"]
[Date "2019.09.21"]
[Round "3.12"]
[White "Krylova, Mariya"]
[Black "Trapeznikova, Darya"]
[Result "1/2-1/2"]
[ECO "C55"]
[WhiteElo "1543"]
[BlackElo "2085"]
[Annotator "NA"]
[PlyCount "85"]
[EventDate "2019.09.19"]
[EventType "swiss"]
[EventCountry "RUS"]
[SourceTitle "playchess.com"]
[Source "ChessBase"]
[SourceQuality "1"]
[TimeControl "5400+30"]

1. e4 {[%emt 0:00:00]} e5 {[%emt 0:00:00]} 2. Nf3 {[%emt 0:00:00]} Nc6 {[%emt 0:00:00]} 3. Bc4 {[%emt 0:00:00]} Nf6 {[%emt 0:00:00]} 4. d3 {[%emt 0:00:06]} Be7 {[%emt 0:01:47]} 5. O-O {[%emt 0:01:28]} O-O {[%emt 0:00:32]} 6. Nc3 {[%emt 0:05:58]} d6 {[%emt 0:01:49]} 7. h3 {[%emt 0:00:17]} Na5 {[%emt 0:01:16]} 8. Bb3 {[%emt 0:01:53]} Nxb3 {[%emt 0:00:41]} 9. axb3 {[%emt 0:00:04]} c6 {[%emt 0:06:30]} 10. d4 {[%emt 0:02:45]} exd4 {[%emt 0:03:15]} 11. Nxd4 {[%emt 0:00:08]} d5 {[%emt 0:04:20]} 12. exd5 {[%emt 0:01:58]} Nxd5 {[%emt 0:00:51]} 13. Nxd5 {[%emt 0:08:36]} Qxd5 {[%emt 0:02:14]} 14. Be3 {[%emt 0:02:53]} Bf6 {[%emt 0:06:28]} 15. c3 {[%emt 0:03:12]} a6 {[%emt 0:03:01]} 16. b4 {[%emt 0:03:17]} Rd8 {[%emt 0:04:52]} 17. Qc2 {[%emt 0:13:02]} Qh5 {[%emt 0:23:23]} 18. Rfd1 {[%emt 0:12:46]} Rd5 {[%emt 0:09:40]} 19. c4 {[%emt 0:11:11]} Rd8 {[%emt 0:01:00]} 20. Ra5 {[%emt 0:08:22]} b5 {[%emt 0:10:34]} 21. Rd2 {[%emt 0:06:29]} Bxd4 {[%emt 0:06:58]} 22. Rxd4 {[%emt 0:02:40]} Rxd4 {[%emt 0:00:31]} 23. Bxd4 {[%emt 0:00:02]} Bf5 {[%emt 0:07:41]} 24. Qc3 {[%emt 0:00:58]} Qg6 {[%emt 0:01:37]} 25. c5 {[%emt 0:02:36]} h6 {[%emt 0:00:51]} 26. Ra3 {[%emt 0:01:33]} Rd8 {[%emt 0:01:43]} 27. Kh2 {[%emt 0:02:58]} Be4 {[%emt 0:00:34]} 28. f3 {[%emt 0:00:40]} Bd5 {[%emt 0:00:48]} 29. Qe3 {[%emt 0:03:32]} Qe6 {[%emt 0:00:53]} 30. Qf4 {[%emt 0:01:29]} Bc4 {[%emt 0:00:27]} 31. Rxa6 {[%emt 0:02:02]} Qd5 {[%emt 0:00:39]} 32. Bc3 {[%emt 0:00:42]} Qe6 {[%emt 0:00:28]} 33. Qc7 {[%emt 0:00:44]} Rc8 {[%emt 0:00:16]} 34. Qg3 {[%emt 0:00:12]} Qg6 {[%emt 0:00:46]} 35. Qxg6 {[%emt 0:00:33]} fxg6 {[%emt 0:00:04]} 36. Ra7 {[%emt 0:00:04]} Bf7 {[%emt 0:00:24]} 37. Rd7 {[%emt 0:00:46]} Kf8 {[%emt 0:00:48]} 38. Kg3 {[%emt 0:00:25]} Kg8 {[%emt 0:00:40]} 39. Kf4 {[%emt 0:01:15]} Re8 {[%emt 0:00:11]} 40. Rd6 {[%emt 0:00:00]} g5+ {[%emt 0:00:00]} 41. Kg3 {[%emt 0:00:00]} Bd5 {[%emt 0:00:00]} 42. Rd7 {[%emt 0:00:00]} Bf7 {[%emt 0:00:00]} 43. Rd6 {[%emt 0:00:00]} 1/2-1/2

[Event "Satka Autumn 2019"]
[Site "Satka"]
[Date "2019.09.22"]
[Round "4.1"]
[White "Charochkina, Daria"]
[Black "Guseva, Marina"]
[Result "0-1"]
[ECO "D11"]
[WhiteElo "2360"]
[BlackElo "2374"]
[Annotator "NA"]
[PlyCount "76"]
[EventDate "2019.09.19"]
[EventType "swiss"]
[EventCountry "RUS"]
[SourceTitle "playchess.com"]
[Source "ChessBase"]
[SourceQuality "1"]
[TimeControl "5400+30"]

1. d4 {[%emt 0:00:00]} d5 {[%emt 0:00:00]} 2. c4 {[%emt 0:00:00]} c6 {[%emt 0:00:00]} 3. Nf3 {[%emt 0:00:00]} Nf6 {[%emt 0:00:00]} 4. Qc2 {[%emt 0:00:00]} dxc4 {[%emt 0:00:00]} 5. Qxc4 {[%emt 0:00:03]} Bg4 {[%emt 0:00:00]} 6. Nc3 {[%emt 0:00:18]} Nbd7 {[%emt 0:00:06]} 7. e4 {[%emt 0:00:19]} Bxf3 {[%emt 0:00:04]} 8. gxf3 {[%emt 0:00:13]} e5 {[%emt 0:00:03]} 9. Be3 {[%emt 0:00:15]} exd4 {[%emt 0:00:06]} 10. Bxd4 {[%emt 0:00:10]} Bd6 {[%emt 0:00:04]} 11. O-O-O {[%emt 0:00:23]} Qe7 {[%emt 0:00:10]} 12. Be3 {[%emt 0:00:21]} Bc5 {[%emt 0:01:25]} 13. Kb1 {[%emt 0:00:46]} b5 {[%emt 0:11:05]} 14. Qe2 {[%emt 0:10:04]} Bxe3 {[%emt 0:02:05]} 15. Qxe3 {[%emt 0:00:47]} O-O {[%emt 0:00:30]} 16. Rg1 {[%emt 0:13:27]} g6 {[%emt 0:01:44]} 17. f4 {[%emt 0:07:52]} Nb6 {[%emt 0:04:37]} 18. e5 {[%emt 0:07:54]} Nfd5 {[%emt 0:00:21]} 19. Nxd5 {[%emt 0:00:05]} Nxd5 {[%emt 0:00:04]} 20. Qf3 {[%emt 0:00:48]} Rad8 {[%emt 0:07:47]} 21. Rc1 {[%emt 0:06:38]} a6 {[%emt 0:16:10]} 22. Bd3 {[%emt 0:09:58]} Nb4 {[%emt 0:18:28]} 23. Bf5 {[%emt 0:05:31]} c5 {[%emt 0:03:10]} 24. a3 {[%emt 0:07:39]} Nd5 {[%emt 0:00:04]} 25. Rcd1 {[%emt 0:00:49]} Nc7 {[%emt 0:04:57]} 26. Qc6 {[%emt 0:15:34]} b4 {[%emt 0:07:41]} 27. axb4 {[%emt 0:01:03]} cxb4 {[%emt 0:00:08]} 28. Bd7 {[%emt 0:02:37]} Nb5 {[%emt 0:03:41]} 29. Rd5 {[%emt 0:00:03]} Qh4 {[%emt 0:02:30]} 30. Qc1 {[%emt 0:01:58]} Qxf2 {[%emt 0:00:49]} 31. Rgd1 {[%emt 0:00:41]} Rb8 {[%emt 0:06:39]} 32. f5 {[%emt 0:00:04]} Nc3+ {[%emt 0:01:33]} 33. Ka1 {[%emt 0:01:29]} Nxd5 {[%emt 0:02:22]} 34. Rxd5 {[%emt 0:00:04]} b3 {[%emt 0:01:09]} 35. e6 {[%emt 0:00:31]} Qh4 {[%emt 0:02:58]} 36. exf7+ {[%emt 0:00:30]} Rxf7 {[%emt 0:00:14]} 37. Bc6 {[%emt 0:03:17]} Rc8 {[%emt 0:01:26]} 38. Re5 {[%emt 0:02:37]} Qa4+ 0-1

[Event "Satka Autumn 2019"]
[Site "Satka"]
[Date "2019.09.22"]
[Round "4.2"]
[White "Loskutova, Viktoriya"]
[Black "Bykova, Anastasia"]
[Result "0-1"]
[ECO "B13"]
[WhiteElo "2162"]
[BlackElo "2259"]
[Annotator "NA"]
[PlyCount "122"]
[EventDate "2019.09.19"]
[EventType "swiss"]
[EventCountry "RUS"]
[SourceTitle "playchess.com"]
[Source "ChessBase"]
[SourceQuality "1"]
[TimeControl "5400+30"]

1. e4 {[%emt 0:06:52]} c6 {[%emt 0:00:00]} 2. d4 {[%emt 0:00:16]} d5 {[%emt 0:00:00]} 3. exd5 {[%emt 0:00:06]} cxd5 {[%emt 0:00:00]} 4. Bd3 {[%emt 0:00:11]} Nc6 {[%emt 0:00:00]} 5. c3 {[%emt 0:00:07]} Nf6 {[%emt 0:00:00]} 6. Bf4 {[%emt 0:00:33]} Bg4 {[%emt 0:00:00]} 7. Qb3 {[%emt 0:00:41]} Qc8 {[%emt 0:00:04]} 8. Nd2 {[%emt 0:01:35]} e6 {[%emt 0:00:10]} 9. Ngf3 {[%emt 0:00:13]} Be7 {[%emt 0:00:06]} 10. O-O {[%emt 0:04:45]} Bh5 {[%emt 0:00:11]} 11. Rfe1 {[%emt 0:01:46]} O-O {[%emt 0:01:32]} 12. Rac1 {[%emt 0:07:22]} Bg6 {[%emt 0:09:54]} 13. Bxg6 {[%emt 0:00:34]} hxg6 {[%emt 0:00:06]} 14. Qb5 {[%emt 0:04:28]} a6 {[%emt 0:00:29]} 15. Qd3 {[%emt 0:00:15]} b5 {[%emt 0:00:31]} 16. Ng5 {[%emt 0:02:15]} Nd7 {[%emt 0:22:15]} 17. Ndf3 {[%emt 0:11:02]} Re8 {[%emt 0:10:08]} 18. Ne5 {[%emt 0:26:43]} Bxg5 {[%emt 0:02:24]} 19. Bxg5 {[%emt 0:00:06]} f6 {[%emt 0:00:59]} 20. Nxc6 {[%emt 0:08:39]} Qxc6 {[%emt 0:00:11]} 21. Bd2 {[%emt 0:00:40]} Kf7 {[%emt 0:00:37]} 22. b3 {[%emt 0:08:37]} Rac8 {[%emt 0:01:11]} 23. Re3 {[%emt 0:03:18]} Rh8 {[%emt 0:01:04]} 24. Rce1 {[%emt 0:01:41]} Nf8 {[%emt 0:00:39]} 25. Rh3 {[%emt 0:01:06]} Rxh3 {[%emt 0:01:06]} 26. Qxh3 {[%emt 0:00:05]} Qd6 {[%emt 0:10:48]} 27. Ra1 {[%emt 0:03:38]} Qa3 {[%emt 0:07:26]} 28. Bc1 {[%emt 0:00:48]} Qa5 {[%emt 0:00:04]} 29. Bd2 {[%emt 0:01:16]} g5 {[%emt 0:00:20]} 30. Qd3 {[%emt 0:02:32]} Qb6 {[%emt 0:04:49]} 31. Be1 {[%emt 0:02:18]} Ng6 {[%emt 0:01:18]} 32. g3 {[%emt 0:00:08]} Ne7 {[%emt 0:00:35]} 33. a4 {[%emt 0:00:24]} Nf5 {[%emt 0:03:41]} 34. axb5 {[%emt 0:01:09]} axb5 {[%emt 0:00:04]} 35. Bd2 {[%emt 0:00:34]} Nd6 {[%emt 0:00:46]} 36. Kg2 {[%emt 0:00:42]} Qb7 {[%emt 0:01:44]} 37. f3 {[%emt 0:00:33]} Rh8 {[%emt 0:07:10]} 38. h3 {[%emt 0:00:31]} Qd7 {[%emt 0:01:17]} 39. g4 {[%emt 0:00:24]} Qb7 {[%emt 0:00:25]} 40. Ra5 {[%emt 0:00:00]} Ra8 {[%emt 0:00:00]} 41. Rxa8 {[%emt 0:00:00]} Qxa8 {[%emt 0:00:00]} 42. Qb1 {[%emt 0:00:00]} Nc8 {[%emt 0:00:00]} 43. Be1 {[%emt 0:00:00]} Ne7 {[%emt 0:00:00]} 44. Bg3 {[%emt 0:00:00]} Ng6 {[%emt 0:00:00]} 45. Qb2 {[%emt 0:00:00]} Qa5 {[%emt 0:00:00]} 46. Kf2 {[%emt 0:00:00]} Ne7 {[%emt 0:00:00]} 47. Bd6 {[%emt 0:00:00]} Nc6 {[%emt 0:01:19]} 48. Qc2 {[%emt 0:00:00]} Qd8 {[%emt 0:02:36]} 49. Bc5 {[%emt 0:00:00]} Qc7 {[%emt 0:03:15]} 50. Qh7 {[%emt 0:00:03]} Ne5 {[%emt 0:03:01]} 51. h4 {[%emt 0:04:05]} gxh4 {[%emt 0:00:14]} 52. Qxh4 {[%emt 0:01:39]} Nd3+ {[%emt 0:00:09]} 53. Kg2 {[%emt 0:00:22]} Nf4+ {[%emt 0:05:27]} 54. Kf2 {[%emt 0:00:43]} Qa5 {[%emt 0:00:25]} 55. Qh8 {[%emt 0:00:53]} Qxc3 {[%emt 0:02:42]} 56. Qf8+ {[%emt 0:00:43]} Kg6 {[%emt 0:00:04]} 57. Qe8+ {[%emt 0:00:21]} Kg5 {[%emt 0:00:34]} 58. Qxb5 {[%emt 0:00:42]} Qd2+ {[%emt 0:01:19]} 59. Kf1 {[%emt 0:00:16]} Nd3 {[%emt 0:00:31]} 60. Kg1 {[%emt 0:00:08]} Qf2+ {[%emt 0:00:42]} 61. Kh1 {[%emt 0:00:10]} Nf4 {[%emt 0:01:27]} 0-1

[Event "Satka Autumn 2019"]
[Site "Satka"]
[Date "2019.09.22"]
[Round "4.5"]
[White "Lysenko, Margarita"]
[Black "Dubnikova, Anastasia"]
[Result "1/2-1/2"]
[ECO "D35"]
[WhiteElo "2249"]
[BlackElo "2056"]
[Annotator "NA"]
[PlyCount "101"]
[EventDate "2019.09.19"]
[EventType "swiss"]
[EventCountry "RUS"]
[SourceTitle "playchess.com"]
[Source "ChessBase"]
[SourceQuality "1"]
[TimeControl "5400+30"]

1. d4 {[%emt 0:00:00]} Nf6 {[%emt 0:00:00]} 2. c4 {[%emt 0:00:00]} e6 {[%emt 0:00:00]} 3. Nc3 {[%emt 0:02:18]} d5 {[%emt 0:00:00]} 4. cxd5 {[%emt 0:02:04]} exd5 {[%emt 0:00:00]} 5. Bg5 {[%emt 0:00:06]} c6 {[%emt 0:00:00]} 6. e3 {[%emt 0:03:16]} Bf5 {[%emt 0:01:55]} 7. Qf3 {[%emt 0:00:25]} Bg6 {[%emt 0:00:06]} 8. Bxf6 {[%emt 0:00:10]} Qxf6 {[%emt 0:00:30]} 9. Qxf6 gxf6 {[%emt 0:00:00]} 10. h4 {[%emt 0:01:58]} Bd6 {[%emt 0:00:56]} 11. h5 {[%emt 0:11:12]} Bf5 {[%emt 0:00:09]} 12. Nf3 {[%emt 0:12:08]} h6 {[%emt 0:11:45]} 13. Nh4 {[%emt 0:04:03]} Bh7 {[%emt 0:00:11]} 14. O-O-O {[%emt 0:05:45]} Rg8 {[%emt 0:01:27]} 15. Bd3 {[%emt 0:05:33]} Bxd3 {[%emt 0:00:11]} 16. Rxd3 {[%emt 0:00:02]} Kd7 {[%emt 0:07:12]} 17. f3 {[%emt 0:07:58]} Na6 {[%emt 0:06:14]} 18. g4 {[%emt 0:01:19]} Rge8 {[%emt 0:00:59]} 19. Nf5 {[%emt 0:03:45]} Bf8 {[%emt 0:00:07]} 20. Rd2 {[%emt 0:05:45]} Nc7 {[%emt 0:00:42]} 21. Rg1 {[%emt 0:05:01]} Ne6 {[%emt 0:04:58]} 22. f4 {[%emt 0:01:00]} b5 {[%emt 0:03:56]} 23. Ne2 {[%emt 0:04:37]} Bb4 {[%emt 0:02:38]} 24. Rc2 {[%emt 0:05:41]} Rh8 {[%emt 0:00:13]} 25. Kb1 {[%emt 0:01:31]} Rac8 {[%emt 0:01:10]} 26. Nc1 {[%emt 0:00:58]} Bf8 {[%emt 0:02:14]} 27. Nd3 {[%emt 0:02:20]} Rg8 {[%emt 0:03:56]} 28. Ne1 {[%emt 0:05:13]} a5 {[%emt 0:04:56]} 29. Nf3 {[%emt 0:00:09]} a4 {[%emt 0:01:47]} 30. a3 {[%emt 0:01:30]} Rc7 {[%emt 0:03:58]} 31. Rcg2 {[%emt 0:05:52]} Rh8 {[%emt 0:00:57]} 32. Rc2 {[%emt 0:00:39]} b4 {[%emt 0:01:34]} 33. axb4 {[%emt 0:00:11]} Bxb4 {[%emt 0:00:05]} 34. Rgc1 {[%emt 0:01:22]} a3 {[%emt 0:04:43]} 35. b3 {[%emt 0:00:09]} Bf8 {[%emt 0:17:10]} 36. Ka2 {[%emt 0:00:11]} Rg8 {[%emt 0:00:06]} 37. Rg2 {[%emt 0:01:50]} Rb7 {[%emt 0:00:28]} 38. Ne1 {[%emt 0:00:42]} Nc7 {[%emt 0:05:32]} 39. Nd3 {[%emt 0:00:37]} Na6 {[%emt 0:00:06]} 40. Rcg1 {[%emt 0:00:00]} Ke6 {[%emt 0:00:00]} 41. Rc1 {[%emt 0:00:00]} Kd7 {[%emt 0:00:00]} 42. Rb1 {[%emt 0:00:00]} Rh8 {[%emt 0:00:00]} 43. Rh1 {[%emt 0:00:00]} Ke6 {[%emt 0:00:00]} 44. Rc1 {[%emt 0:00:00]} Kd7 {[%emt 0:00:00]} 45. Rh1 {[%emt 0:00:00]} Ke6 {[%emt 0:00:00]} 46. Re1 {[%emt 0:00:00]} Nb4+ {[%emt 0:00:00]} 47. Nxb4 {[%emt 0:00:00]} Bxb4 {[%emt 0:00:00]} 48. Rc1 {[%emt 0:00:00]} Kd7 {[%emt 0:00:00]} 49. Rgc2 {[%emt 0:00:00]} Rb6 {[%emt 0:00:00]} 50. Re2 {[%emt 0:00:30]} Bf8 {[%emt 0:00:00]} 51. Rg2 {[%emt 0:05:00]} 1/2-1/2

[Event "Satka Autumn 2019"]
[Site "Satka"]
[Date "2019.09.22"]
[Round "4.6"]
[White "Mar, Karmen"]
[Black "Prudnikova, Svetlana"]
[Result "1/2-1/2"]
[ECO "B40"]
[WhiteElo "2026"]
[BlackElo "2234"]
[Annotator "NA"]
[PlyCount "176"]
[EventDate "2019.09.19"]
[EventType "swiss"]
[EventCountry "RUS"]
[SourceTitle "playchess.com"]
[Source "ChessBase"]
[SourceQuality "1"]
[TimeControl "5400+30"]

1. e4 {[%emt 0:00:00]} c5 {[%emt 0:00:00]} 2. Nf3 {[%emt 0:00:00]} e6 {[%emt 0:00:00]} 3. g3 {[%emt 0:00:04]} Nc6 {[%emt 0:00:21]} 4. Bg2 {[%emt 0:00:10]} Nf6 {[%emt 0:00:22]} 5. d3 {[%emt 0:01:08]} Be7 {[%emt 0:04:00]} 6. e5 {[%emt 0:01:55]} Ng4 {[%emt 0:01:53]} 7. Qe2 {[%emt 0:03:30]} Qc7 {[%emt 0:12:12]} 8. Bf4 {[%emt 0:07:20]} d6 {[%emt 0:02:17]} 9. exd6 {[%emt 0:03:59]} Bxd6 {[%emt 0:00:02]} 10. Bxd6 {[%emt 0:07:01]} Qxd6 {[%emt 0:00:02]} 11. Nc3 {[%emt 0:01:48]} O-O {[%emt 0:07:58]} 12. O-O {[%emt 0:23:42]} Bd7 {[%emt 0:07:49]} 13. Rfe1 {[%emt 0:05:04]} Rac8 {[%emt 0:13:56]} 14. Ng5 {[%emt 0:08:12]} Nf6 {[%emt 0:00:59]} 15. Nce4 {[%emt 0:04:41]} Qe7 {[%emt 0:07:48]} 16. Nxf6+ {[%emt 0:05:46]} Qxf6 {[%emt 0:00:03]} 17. Qh5 {[%emt 0:00:54]} Qg6 {[%emt 0:01:23]} 18. Qxg6 {[%emt 0:05:57]} hxg6 {[%emt 0:00:07]} 19. h4 {[%emt 0:03:43]} Nd4 {[%emt 0:04:38]} 20. Rac1 {[%emt 0:00:57]} Bc6 {[%emt 0:00:46]} 21. Bxc6 {[%emt 0:01:03]} Rxc6 {[%emt 0:00:26]} 22. Kg2 {[%emt 0:00:15]} Rd8 {[%emt 0:01:35]} 23. Nf3 {[%emt 0:00:55]} Ra6 {[%emt 0:07:08]} 24. a3 {[%emt 0:00:44]} Rb6 {[%emt 0:00:37]} 25. b3 {[%emt 0:00:39]} Rbd6 {[%emt 0:03:47]} 26. a4 {[%emt 0:00:28]} b6 {[%emt 0:02:45]} 27. Re4 {[%emt 0:01:40]} f6 {[%emt 0:03:27]} 28. Ree1 {[%emt 0:01:00]} Kf7 {[%emt 0:00:19]} 29. Nd2 {[%emt 0:00:41]} e5 {[%emt 0:01:50]} 30. Ne4 {[%emt 0:04:32]} R6d7 {[%emt 0:02:19]} 31. Nd2 {[%emt 0:01:30]} Rh8 {[%emt 0:01:41]} 32. Ne4 {[%emt 0:02:03]} Rh5 {[%emt 0:01:54]} 33. Rh1 {[%emt 0:02:12]} Rd8 {[%emt 0:00:25]} 34. Nd2 {[%emt 0:01:56]} Rdh8 {[%emt 0:00:58]} 35. c3 {[%emt 0:01:11]} Ne6 {[%emt 0:00:33]} 36. Nf3 {[%emt 0:00:30]} Rd8 {[%emt 0:00:56]} 37. Rcd1 {[%emt 0:00:13]} Rhh8 {[%emt 0:02:44]} 38. Rd2 {[%emt 0:00:37]} Rd7 {[%emt 0:00:42]} 39. Rhd1 {[%emt 0:00:28]} Rhd8 {[%emt 0:00:24]} 40. Kf1 {[%emt 0:00:00]} Nc7 {[%emt 0:00:00]} 41. Ke2 {[%emt 0:00:00]} Nd5 {[%emt 0:00:00]} 42. Rc1 {[%emt 0:00:00]} Ke6 {[%emt 0:00:00]} 43. Rcc2 {[%emt 0:00:00]} Ne7 {[%emt 0:00:00]} 44. Rc1 {[%emt 0:00:00]} Nc6 {[%emt 0:00:00]} 45. Rcd1 {[%emt 0:00:00]} Rd6 {[%emt 0:00:00]} 46. Rc1 {[%emt 0:00:00]} f5 {[%emt 0:00:00]} 47. Ng5+ {[%emt 0:00:00]} Kf6 {[%emt 0:00:45]} 48. Rcc2 {[%emt 0:00:00]} R8d7 {[%emt 0:02:09]} 49. Nh7+ {[%emt 0:00:00]} Ke7 {[%emt 0:00:04]} 50. Ng5 {[%emt 0:00:00]} Rb7 {[%emt 0:01:32]} 51. Rb2 {[%emt 0:03:06]} Rb8 {[%emt 0:01:15]} 52. Kd1 {[%emt 0:00:32]} Rbd8 {[%emt 0:00:40]} 53. Ke2 {[%emt 0:00:14]} R8d7 {[%emt 0:01:59]} 54. Rbc2 {[%emt 0:00:12]} Rd8 {[%emt 0:03:29]} 55. Rb2 {[%emt 0:00:10]} Rb8 {[%emt 0:00:13]} 56. Kd1 {[%emt 0:00:14]} a6 {[%emt 0:00:20]} 57. Ke2 {[%emt 0:01:46]} Rbd8 {[%emt 0:00:11]} 58. Rbc2 {[%emt 0:00:17]} Na5 {[%emt 0:00:41]} 59. Rb2 {[%emt 0:00:29]} e4 {[%emt 0:01:14]} 60. dxe4 {[%emt 0:00:28]} Rxd2+ {[%emt 0:00:02]} 61. Rxd2 {[%emt 0:00:05]} Rxd2+ {[%emt 0:00:04]} 62. Kxd2 {[%emt 0:00:03]} Nxb3+ {[%emt 0:00:09]} 63. Kc2 {[%emt 0:01:36]} c4 {[%emt 0:00:04]} 64. exf5 {[%emt 0:00:43]} gxf5 {[%emt 0:00:02]} 65. Nf3 {[%emt 0:00:45]} Nc5 {[%emt 0:00:16]} 66. Ne5 {[%emt 0:01:00]} Nxa4 {[%emt 0:01:30]} 67. Nxc4 {[%emt 0:00:06]} b5 {[%emt 0:00:02]} 68. Ne3 {[%emt 0:00:33]} Ke6 {[%emt 0:00:01]} 69. c4 {[%emt 0:01:01]} bxc4 {[%emt 0:00:24]} 70. Nxc4 {[%emt 0:00:02]} Kd5 {[%emt 0:00:08]} 71. Nd2 {[%emt 0:01:27]} Nc5 {[%emt 0:00:09]} 72. f3 {[%emt 0:00:33]} Kd4 {[%emt 0:00:38]} 73. g4 {[%emt 0:00:34]} fxg4 {[%emt 0:00:16]} 74. fxg4 {[%emt 0:00:01]} Ke3 {[%emt 0:00:20]} 75. Nc4+ {[%emt 0:01:41]} Kf4 {[%emt 0:00:04]} 76. Nd6 {[%emt 0:01:04]} Kxg4 {[%emt 0:00:26]} 77. Kc3 {[%emt 0:00:34]} g6 {[%emt 0:01:21]} 78. Kb4 {[%emt 0:00:10]} Ne6 {[%emt 0:00:59]} 79. Ka5 {[%emt 0:00:16]} Nc7 {[%emt 0:00:40]} 80. Kb6 {[%emt 0:00:04]} Kxh4 {[%emt 0:00:06]} 81. Kxc7 {[%emt 0:00:14]} a5 {[%emt 0:00:01]} 82. Kb6 {[%emt 0:01:15]} a4 {[%emt 0:00:02]} 83. Nc4 {[%emt 0:00:18]} g5 {[%emt 0:01:19]} 84. Kb5 {[%emt 0:00:10]} a3 {[%emt 0:01:15]} 85. Nxa3 {[%emt 0:00:02]} Kg3 {[%emt 0:00:42]} 86. Nc4 {[%emt 0:01:14]} Kf4 {[%emt 0:00:12]} 87. Nd2 {[%emt 0:00:57]} g4 {[%emt 0:00:19]} 88. Nf1 {[%emt 0:00:19]} Kf3 {[%emt 0:00:38]} 1/2-1/2

[Event "Satka Autumn 2019"]
[Site "Satka"]
[Date "2019.09.22"]
[Round "4.7"]
[White "Benderac, Ana"]
[Black "Mirzaeva, Gulnara"]
[Result "0-1"]
[ECO "A03"]
[WhiteElo "2228"]
[BlackElo "1936"]
[Annotator "NA"]
[PlyCount "96"]
[EventDate "2019.09.19"]
[EventType "swiss"]
[EventCountry "RUS"]
[SourceTitle "playchess.com"]
[Source "ChessBase"]
[SourceQuality "1"]
[TimeControl "5400+30"]

1. f4 {[%emt 0:00:00]} d5 {[%emt 0:00:55]} 2. Nf3 {[%emt 0:00:00]} Nf6 {[%emt 0:00:23]} 3. b3 {[%emt 0:00:17]} c5 {[%emt 0:01:14]} 4. Bb2 {[%emt 0:00:38]} Nc6 {[%emt 0:00:11]} 5. e3 {[%emt 0:00:14]} a6 {[%emt 0:03:55]} 6. Ne5 {[%emt 0:07:01]} e6 {[%emt 0:04:16]} 7. d3 {[%emt 0:01:04]} Qc7 {[%emt 0:02:06]} 8. Nd2 {[%emt 0:00:25]} Bd6 {[%emt 0:02:47]} 9. Ndf3 {[%emt 0:01:15]} b5 {[%emt 0:04:54]} 10. Be2 {[%emt 0:03:28]} Bb7 {[%emt 0:00:47]} 11. O-O {[%emt 0:00:15]} Bxe5 {[%emt 0:04:55]} 12. Nxe5 {[%emt 0:00:22]} Rd8 {[%emt 0:03:57]} 13. Qe1 {[%emt 0:00:43]} d4 {[%emt 0:01:37]} 14. Qg3 {[%emt 0:06:23]} O-O {[%emt 0:01:56]} 15. Nxc6 {[%emt 0:06:42]} Bxc6 {[%emt 0:02:29]} 16. b4 {[%emt 0:00:40]} Nd5 {[%emt 0:11:35]} 17. exd4 {[%emt 0:07:08]} cxb4 {[%emt 0:00:29]} 18. a3 {[%emt 0:06:46]} Nc3 {[%emt 0:01:42]} 19. Bg4 {[%emt 0:01:09]} Na4 {[%emt 0:01:32]} 20. Bc1 {[%emt 0:00:50]} Bb7 {[%emt 0:03:17]} 21. Be3 {[%emt 0:06:40]} bxa3 {[%emt 0:01:13]} 22. Rxa3 {[%emt 0:01:18]} Qxc2 {[%emt 0:02:51]} 23. f5 {[%emt 0:00:55]} exf5 {[%emt 0:03:06]} 24. Bxf5 {[%emt 0:03:46]} Rfe8 {[%emt 0:00:55]} 25. Bg5 {[%emt 0:05:34]} f6 {[%emt 0:08:59]} 26. Bxf6 {[%emt 0:04:08]} Qxg2+ {[%emt 0:01:42]} 27. Qxg2 {[%emt 0:00:06]} Bxg2 {[%emt 0:00:03]} 28. Bxd8 {[%emt 0:00:38]} Bxf1 {[%emt 0:00:07]} 29. Bh4 {[%emt 0:02:21]} g6 {[%emt 0:02:59]} 30. Bd7 {[%emt 0:03:05]} Rf8 {[%emt 0:00:54]} 31. Be6+ {[%emt 0:00:13]} Kg7 {[%emt 0:00:45]} 32. Bf2 {[%emt 0:00:29]} Be2 {[%emt 0:02:05]} 33. d5 {[%emt 0:00:21]} Kf6 {[%emt 0:01:23]} 34. Bh3 {[%emt 0:05:40]} Rd8 {[%emt 0:00:55]} 35. Bd4+ {[%emt 0:01:53]} Ke7 {[%emt 0:00:12]} 36. Bg2 {[%emt 0:00:06]} Bg4 {[%emt 0:00:57]} 37. Ra1 {[%emt 0:01:18]} Bf5 {[%emt 0:01:26]} 38. Rc1 {[%emt 0:07:18]} Bxd3 {[%emt 0:00:35]} 39. Rc6 {[%emt 0:01:29]} Rd6 {[%emt 0:05:38]} 40. Rc7+ {[%emt 0:00:00]} Rd7 {[%emt 0:00:00]} 41. Rc6 {[%emt 0:00:00]} Rd6 {[%emt 0:00:00]} 42. Rc8 {[%emt 0:00:00]} b4 {[%emt 0:00:00]} 43. Be5 {[%emt 0:00:00]} b3 {[%emt 0:00:00]} 44. Rc7+ {[%emt 0:00:00]} Rd7 {[%emt 0:00:00]} 45. d6+ {[%emt 0:00:00]} Ke6 {[%emt 0:00:00]} 46. Bc6 {[%emt 0:00:00]} Kxe5 {[%emt 0:00:00]} 47. Bxd7 {[%emt 0:03:16]} b2 {[%emt 0:00:00]} 48. Rb7 {[%emt 0:00:04]} Bb5 {[%emt 0:00:00]} 0-1

[Event "Satka Autumn 2019"]
[Site "Satka"]
[Date "2019.09.22"]
[Round "4.8"]
[White "Svetlova, Ksenia"]
[Black "Petrenko, Svetlana"]
[Result "1-0"]
[ECO "B07"]
[WhiteElo "1875"]
[BlackElo "2200"]
[Annotator "NA"]
[PlyCount "69"]
[EventDate "2019.09.19"]
[EventType "swiss"]
[EventCountry "RUS"]
[SourceTitle "playchess.com"]
[Source "ChessBase"]
[SourceQuality "1"]
[TimeControl "5400+30"]

1. e4 {[%emt 0:00:00]} d6 {[%emt 0:00:00]} 2. d4 {[%emt 0:00:00]} Nf6 {[%emt 0:00:00]} 3. Nc3 {[%emt 0:00:00]} g6 {[%emt 0:00:08]} 4. f3 {[%emt 0:00:11]} c6 {[%emt 0:00:32]} 5. Be3 {[%emt 0:00:06]} h5 {[%emt 0:01:57]} 6. h4 {[%emt 0:03:14]} Bg7 {[%emt 0:01:39]} 7. Qd2 {[%emt 0:00:11]} b5 {[%emt 0:01:25]} 8. Nh3 {[%emt 0:05:10]} a6 {[%emt 0:03:49]} 9. Ng5 {[%emt 0:04:11]} Qc7 {[%emt 0:01:24]} 10. Be2 {[%emt 0:07:44]} Nbd7 {[%emt 0:01:15]} 11. Nd1 {[%emt 0:04:09]} Bb7 {[%emt 0:06:43]} 12. Rf1 {[%emt 0:11:54]} c5 {[%emt 0:03:06]} 13. c3 {[%emt 0:06:03]} e5 {[%emt 0:11:58]} 14. Nf2 {[%emt 0:09:12]} O-O {[%emt 0:08:48]} 15. d5 {[%emt 0:03:30]} Qa5 {[%emt 0:04:30]} 16. g4 {[%emt 0:00:48]} Bc8 {[%emt 0:01:48]} 17. Nh1 {[%emt 0:04:39]} Nb6 {[%emt 0:02:12]} 18. Rg1 {[%emt 0:00:38]} Nc4 {[%emt 0:01:42]} 19. Bxc4 {[%emt 0:01:06]} bxc4 {[%emt 0:00:02]} 20. Ng3 {[%emt 0:10:19]} hxg4 {[%emt 0:01:10]} 21. h5 {[%emt 0:01:57]} gxf3 {[%emt 0:13:36]} 22. Nxf3 {[%emt 0:00:30]} Bg4 {[%emt 0:00:53]} 23. h6 {[%emt 0:00:20]} Bh8 {[%emt 0:02:48]} 24. Ng5 {[%emt 0:05:32]} Rfb8 {[%emt 0:02:05]} 25. Rf1 {[%emt 0:03:03]} Rb7 {[%emt 0:01:40]} 26. Qh2 {[%emt 0:06:31]} Kf8 {[%emt 0:06:07]} 27. Rxf6 {[%emt 0:00:47]} Bxf6 {[%emt 0:04:51]} 28. Nh7+ {[%emt 0:00:04]} Kg8 {[%emt 0:03:17]} 29. Nxf6+ {[%emt 0:00:11]} Kh8 {[%emt 0:00:01]} 30. Nxg4 {[%emt 0:00:42]} Rab8 {[%emt 0:00:01]} 31. Bc1 {[%emt 0:00:17]} Qd8 {[%emt 0:00:15]} 32. Qf2 {[%emt 0:00:28]} f5 {[%emt 0:04:59]} 33. exf5 {[%emt 0:00:19]} gxf5 {[%emt 0:00:29]} 34. Qxf5 {[%emt 0:01:27]} Qg8 {[%emt 0:00:06]} 35. Bg5 {[%emt 0:00:59]} 1-0